[Event "Late-Titled-Tuesday-Blitz-June-04-2024"]
[Site "Chess.com"]
[Date "2024.06.04"]
[Round "11"]
[White "katharinareinecke"]
[Black "Eloist"]
[Result "0-1"]
[WhiteElo "1997"]
[BlackElo "2403"]
[TimeControl "180+1"]
[EndTime "16:03:31 PDT"]
[Termination "Eloist won by resignation"]

1. e4 {[%clk 0:03:00.9]} 1... e6 {[%clk 0:02:59.7]} 2. d4 {[%clk 0:02:58.6]}
2... d5 {[%clk 0:02:59.6]} 3. e5 {[%clk 0:02:57.6]} 3... c5 {[%clk 0:02:59.2]}
4. c3 {[%clk 0:02:57.2]} 4... Ne7 {[%clk 0:02:58.9]} 5. Nf3 {[%clk 0:02:55.7]}
5... Nec6 {[%clk 0:02:58.7]} 6. Bd3 {[%clk 0:02:51.9]} 6... b6 {[%clk
0:02:58.6]} 7. O-O {[%clk 0:02:45]} 7... Ba6 {[%clk 0:02:57.9]} 8. Bxa6 {[%clk
0:02:40.2]} 8... Nxa6 {[%clk 0:02:58.8]} 9. h4 {[%clk 0:02:34.6]} 9... Nc7
{[%clk 0:02:54.9]} 10. h5 {[%clk 0:02:34.2]} 10... h6 {[%clk 0:02:54.3]} 11. a3
{[%clk 0:02:27.5]} 11... c4 {[%clk 0:02:53.6]} 12. Nbd2 {[%clk 0:02:25.3]} 12...
Be7 {[%clk 0:02:53.2]} 13. Nh2 {[%clk 0:02:19.8]} 13... Kd7 {[%clk 0:02:44.6]}
14. f4 {[%clk 0:02:19.2]} 14... f5 {[%clk 0:02:44]} 15. Ndf3 {[%clk 0:02:12.7]}
15... Qe8 {[%clk 0:02:42.6]} 16. Ne1 {[%clk 0:02:07]} 16... g6 {[%clk
0:02:40.7]} 17. hxg6 {[%clk 0:02:03.8]} 17... Qxg6 {[%clk 0:02:41.6]} 18. Qf3
{[%clk 0:01:58.1]} 18... Rag8 {[%clk 0:02:39.9]} 19. Bd2 {[%clk 0:01:49.8]}
19... Na5 {[%clk 0:02:39.4]} 20. Rd1 {[%clk 0:01:47]} 20... Nb3 {[%clk
0:02:38.8]} 21. Nc2 {[%clk 0:01:44.5]} 21... h5 {[%clk 0:02:34.4]} 22. Ne1
{[%clk 0:01:38.7]} 22... h4 {[%clk 0:02:33.7]} 23. Qh3 {[%clk 0:01:38.4]} 23...
Qh5 {[%clk 0:02:25.7]} 24. Nef3 {[%clk 0:01:35.1]} 24... Rg3 {[%clk 0:02:24.7]}
25. Ng5 {[%clk 0:00:50.3]} 25... Rxh3 {[%clk 0:02:19.3]} 26. gxh3 {[%clk
0:00:50.4]} 26... Qe2 {[%clk 0:02:00]} 27. Nhf3 {[%clk 0:00:40.5]} 27... Bxg5
{[%clk 0:01:54.3]} 28. Rde1 {[%clk 0:00:38.3]} 28... Qd3 {[%clk 0:01:49.2]} 29.
fxg5 {[%clk 0:00:31.6]} 29... Nxd2 {[%clk 0:01:47.9]} 30. Nxd2 {[%clk
0:00:28.3]} 30... Qxd2 {[%clk 0:01:47.9]} 0-1

[Event "Late-Titled-Tuesday-Blitz-June-04-2024"]
[Site "Chess.com"]
[Date "2024.06.04"]
[Round "11"]
[White "GMChessrob"]
[Black "th3d4rkness"]
[Result "1-0"]
[WhiteElo "2589"]
[BlackElo "2152"]
[TimeControl "180+1"]
[EndTime "16:03:34 PDT"]
[Termination "GMChessrob won by resignation"]

1. d4 {[%clk 0:03:00.9]} 1... Nf6 {[%clk 0:02:59.5]} 2. c4 {[%clk 0:03:00.3]}
2... e6 {[%clk 0:02:59.4]} 3. g3 {[%clk 0:02:58.8]} 3... Bb4+ {[%clk 0:02:58.6]}
4. Nd2 {[%clk 0:02:57.9]} 4... O-O {[%clk 0:02:57.9]} 5. Bg2 {[%clk 0:02:57.6]}
5... d5 {[%clk 0:02:56.3]} 6. Nf3 {[%clk 0:02:57.3]} 6... c5 {[%clk 0:02:52.2]}
7. O-O {[%clk 0:02:54.5]} 7... cxd4 {[%clk 0:02:48.4]} 8. Nxd4 {[%clk
0:02:35.9]} 8... Nc6 {[%clk 0:02:40]} 9. N2f3 {[%clk 0:02:28.7]} 9... Nxd4
{[%clk 0:02:26.6]} 10. Qxd4 {[%clk 0:02:29.6]} 10... Bd7 {[%clk 0:02:05.4]} 11.
cxd5 {[%clk 0:02:06.2]} 11... Qe7 {[%clk 0:01:46.2]} 12. Bg5 {[%clk 0:01:50.5]}
12... Bc5 {[%clk 0:01:40.3]} 13. d6 {[%clk 0:01:34.3]} 13... Qxd6 {[%clk
0:01:11.9]} 14. Qxd6 {[%clk 0:01:33.8]} 14... Bxd6 {[%clk 0:01:11]} 15. Bxf6
{[%clk 0:01:33.7]} 15... gxf6 {[%clk 0:01:04]} 16. Rfd1 {[%clk 0:01:29]} 16...
Bb5 {[%clk 0:00:53.1]} 17. Rxd6 {[%clk 0:01:27.4]} 17... Bxe2 {[%clk 0:00:53.1]}
18. Nd4 {[%clk 0:01:22.8]} 18... Ba6 {[%clk 0:00:50.9]} 19. Rxa6 {[%clk
0:01:14.8]} 19... bxa6 {[%clk 0:00:49.1]} 20. Bxa8 {[%clk 0:01:15.7]} 20... Rxa8
{[%clk 0:00:49.4]} 21. b4 {[%clk 0:01:10.7]} 21... Rd8 {[%clk 0:00:49.1]} 22.
Nb3 {[%clk 0:01:10.1]} 22... Rd4 {[%clk 0:00:48]} 23. Nxd4 {[%clk 0:01:09.4]}
1-0

[Event "Late-Titled-Tuesday-Blitz-June-04-2024"]
[Site "Chess.com"]
[Date "2024.06.04"]
[Round "11"]
[White "krzyzan94"]
[Black "Msb2"]
[Result "0-1"]
[WhiteElo "2801"]
[BlackElo "3030"]
[TimeControl "180+1"]
[EndTime "16:03:38 PDT"]
[Termination "Msb2 won by resignation"]

1. Nf3 {[%clk 0:02:59.9]} 1... d5 {[%clk 0:03:00.5]} 2. e3 {[%clk 0:02:59.2]}
2... Nf6 {[%clk 0:02:59.8]} 3. b3 {[%clk 0:02:57.7]} 3... e6 {[%clk 0:03:00.2]}
4. Bb2 {[%clk 0:02:58.2]} 4... Bd6 {[%clk 0:03:00.8]} 5. g3 {[%clk 0:02:58.6]}
5... O-O {[%clk 0:03:01.2]} 6. Bg2 {[%clk 0:02:59.3]} 6... c5 {[%clk 0:03:01.7]}
7. O-O {[%clk 0:02:59.7]} 7... Nc6 {[%clk 0:03:02.3]} 8. c4 {[%clk 0:03:00.1]}
8... d4 {[%clk 0:02:57.2]} 9. exd4 {[%clk 0:02:48.3]} 9... cxd4 {[%clk
0:02:58.1]} 10. Nxd4 {[%clk 0:02:40]} 10... Nxd4 {[%clk 0:02:59]} 11. Bxd4
{[%clk 0:02:40.4]} 11... Bxg3 {[%clk 0:02:58.9]} 12. hxg3 {[%clk 0:02:26.5]}
12... Qxd4 {[%clk 0:02:58.9]} 13. Nc3 {[%clk 0:02:27.2]} 13... Rd8 {[%clk
0:02:59.5]} 14. Qf3 {[%clk 0:02:19.3]} 14... Rb8 {[%clk 0:02:55.5]} 15. Nb5
{[%clk 0:02:14.8]} 15... Qb6 {[%clk 0:02:55.4]} 16. Qe3 {[%clk 0:02:09.1]} 16...
Qxe3 {[%clk 0:02:44.7]} 17. dxe3 {[%clk 0:02:10]} 17... a6 {[%clk 0:02:45.3]}
18. Nc3 {[%clk 0:02:07]} 18... Bd7 {[%clk 0:02:43.8]} 19. Rfd1 {[%clk
0:02:07.5]} 19... Kf8 {[%clk 0:02:43.7]} 20. a4 {[%clk 0:01:59.8]} 20... Ke7
{[%clk 0:02:43.2]} 21. Kf1 {[%clk 0:01:54.7]} 21... a5 {[%clk 0:02:43.4]} 22.
Ke2 {[%clk 0:01:53]} 22... b6 {[%clk 0:02:44]} 23. Ne4 {[%clk 0:01:43.7]} 23...
Bc6 {[%clk 0:02:22]} 24. Nxf6 {[%clk 0:01:41]} 24... Bxg2 {[%clk 0:02:22.3]} 25.
Nh5 {[%clk 0:01:16]} 25... Be4 {[%clk 0:02:16.9]} 26. Rd4 {[%clk 0:00:48.9]}
26... Bc2 {[%clk 0:02:11.6]} 27. Ra3 {[%clk 0:00:42.7]} 27... e5 {[%clk
0:02:05.9]} 28. Rxd8 {[%clk 0:00:27.2]} 28... Rxd8 {[%clk 0:02:06.8]} 29. Nxg7
{[%clk 0:00:25.1]} 29... Kf8 {[%clk 0:02:06.6]} 30. Ra2 {[%clk 0:00:02.2]} 30...
Bxb3 {[%clk 0:02:03.8]} 0-1

[Event "Late-Titled-Tuesday-Blitz-June-04-2024"]
[Site "Chess.com"]
[Date "2024.06.04"]
[Round "11"]
[White "Sanan_Sjugirov"]
[Black "IlanSchnaider"]
[Result "1-0"]
[WhiteElo "2949"]
[BlackElo "2790"]
[TimeControl "180+1"]
[EndTime "16:03:57 PDT"]
[Termination "Sanan_Sjugirov won on time"]

1. e4 {[%clk 0:02:55.7]} 1... c5 {[%clk 0:02:59.9]} 2. Nf3 {[%clk 0:02:55.5]}
2... d6 {[%clk 0:03:00.4]} 3. Nc3 {[%clk 0:02:56.2]} 3... Nf6 {[%clk 0:03:00.4]}
4. d4 {[%clk 0:02:56.2]} 4... cxd4 {[%clk 0:03:00.7]} 5. Nxd4 {[%clk 0:02:57.1]}
5... a6 {[%clk 0:03:00.4]} 6. Bg5 {[%clk 0:02:48.7]} 6... e6 {[%clk 0:03:00.1]}
7. f4 {[%clk 0:02:48.3]} 7... Be7 {[%clk 0:02:59.6]} 8. Qf3 {[%clk 0:02:47.9]}
8... Qc7 {[%clk 0:02:59.9]} 9. O-O-O {[%clk 0:02:47.9]} 9... Nbd7 {[%clk
0:03:00.2]} 10. g4 {[%clk 0:02:47.8]} 10... h6 {[%clk 0:03:00.3]} 11. Bxf6
{[%clk 0:02:47.7]} 11... Bxf6 {[%clk 0:03:00.6]} 12. h4 {[%clk 0:02:45.3]} 12...
Nb6 {[%clk 0:03:00.9]} 13. g5 {[%clk 0:02:42.3]} 13... Bxd4 {[%clk 0:03:00.9]}
14. Rxd4 {[%clk 0:02:42.1]} 14... Qc5 {[%clk 0:03:01.5]} 15. Rd2 {[%clk
0:02:36.1]} 15... Bd7 {[%clk 0:02:53.1]} 16. Be2 {[%clk 0:02:33]} 16... Na4
{[%clk 0:02:44.5]} 17. Nxa4 {[%clk 0:02:30.9]} 17... Bxa4 {[%clk 0:02:45.4]} 18.
Rhd1 {[%clk 0:02:21.3]} 18... hxg5 {[%clk 0:02:21.7]} 19. hxg5 {[%clk 0:02:21]}
19... Rc8 {[%clk 0:01:17]} 20. b3 {[%clk 0:02:11]} 20... Bb5 {[%clk 0:01:11.4]}
21. Bxb5+ {[%clk 0:02:10.1]} 21... axb5 {[%clk 0:01:11.5]} 22. Kb1 {[%clk
0:02:08.7]} 22... Rc6 {[%clk 0:01:09.3]} 23. f5 {[%clk 0:02:07.4]} 23... Qe5
{[%clk 0:00:56.2]} 24. g6 {[%clk 0:02:07.3]} 24... fxg6 {[%clk 0:00:45.4]} 25.
fxe6 {[%clk 0:02:07.3]} 25... Qxe6 {[%clk 0:00:40]} 26. e5 {[%clk 0:02:07.5]}
26... Rf8 {[%clk 0:00:35.8]} 27. Qg3 {[%clk 0:01:58.6]} 27... dxe5 {[%clk
0:00:16.7]} 28. Rd8+ {[%clk 0:01:50]} 28... Ke7 {[%clk 0:00:17.1]} 29. Qh4+
{[%clk 0:01:50.6]} 29... Qf6 {[%clk 0:00:04.9]} 30. Qb4+ {[%clk 0:01:51]} 1-0

[Event "Late-Titled-Tuesday-Blitz-June-04-2024"]
[Site "Chess.com"]
[Date "2024.06.04"]
[Round "11"]
[White "Roedor"]
[Black "Romkachess"]
[Result "0-1"]
[WhiteElo "2376"]
[BlackElo "2526"]
[TimeControl "180+1"]
[EndTime "16:04:14 PDT"]
[Termination "Romkachess won by resignation"]

1. d4 {[%clk 0:03:00.9]} 1... Nf6 {[%clk 0:02:59.6]} 2. c4 {[%clk 0:03:00.5]}
2... e6 {[%clk 0:02:58.3]} 3. g3 {[%clk 0:03:00.2]} 3... d5 {[%clk 0:02:57.7]}
4. Bg2 {[%clk 0:03:00.4]} 4... Be7 {[%clk 0:02:56.6]} 5. Nf3 {[%clk 0:03:00.6]}
5... O-O {[%clk 0:02:55.3]} 6. O-O {[%clk 0:03:00.8]} 6... Nbd7 {[%clk 0:02:55]}
7. Nbd2 {[%clk 0:02:59.5]} 7... c6 {[%clk 0:02:55.2]} 8. Qc2 {[%clk 0:02:59.4]}
8... b6 {[%clk 0:02:55.3]} 9. e4 {[%clk 0:02:59.5]} 9... dxc4 {[%clk 0:02:55.3]}
10. Nxc4 {[%clk 0:02:59.5]} 10... Bb7 {[%clk 0:02:56.2]} 11. Bf4 {[%clk
0:02:49.8]} 11... c5 {[%clk 0:02:56.3]} 12. e5 {[%clk 0:02:40.8]} 12... Nd5
{[%clk 0:02:55]} 13. dxc5 {[%clk 0:02:38.4]} 13... Bxc5 {[%clk 0:02:36.9]} 14.
Ng5 {[%clk 0:02:33.5]} 14... g6 {[%clk 0:02:34.6]} 15. Ne4 {[%clk 0:02:26.9]}
15... Rc8 {[%clk 0:02:30.8]} 16. Bh6 {[%clk 0:02:24.6]} 16... b5 {[%clk
0:02:18.5]} 17. Ncd6 {[%clk 0:02:16.1]} 17... Bxd6 {[%clk 0:02:16.9]} 18. Qxc8
{[%clk 0:02:02.5]} 18... Qxc8 {[%clk 0:02:08.3]} 19. Nxd6 {[%clk 0:02:02.8]}
19... Qa8 {[%clk 0:02:06]} 20. Bxf8 {[%clk 0:02:01.7]} 20... Nxf8 {[%clk
0:02:06.9]} 21. Rac1 {[%clk 0:01:59.9]} 21... Bc6 {[%clk 0:02:04.8]} 22. Rfd1
{[%clk 0:01:57.7]} 22... Nd7 {[%clk 0:02:03.3]} 23. f4 {[%clk 0:01:56.4]} 23...
g5 {[%clk 0:01:59.8]} 24. Rd4 {[%clk 0:01:39.2]} 24... a6 {[%clk 0:01:59.1]} 25.
h4 {[%clk 0:01:36.3]} 25... Qa7 {[%clk 0:01:59.1]} 26. Rd1 {[%clk 0:01:35.2]}
26... Ne3 {[%clk 0:01:52.9]} 27. Nc8 {[%clk 0:01:17.5]} 27... Qc7 {[%clk
0:01:36]} 28. Ne7+ {[%clk 0:01:15.5]} 28... Kg7 {[%clk 0:01:35.1]} 29. Bxc6
{[%clk 0:01:12.7]} 29... Nxd1 {[%clk 0:01:32.7]} 30. Rxd1 {[%clk 0:01:10.2]}
30... Nxe5 {[%clk 0:01:27.2]} 31. fxe5 {[%clk 0:01:07.9]} 31... Qxe7 {[%clk
0:01:27.2]} 32. Bf3 {[%clk 0:01:02.1]} 32... Qc5+ {[%clk 0:01:23.6]} 33. Kg2
{[%clk 0:01:01.4]} 33... Qxe5 {[%clk 0:01:24.5]} 34. hxg5 {[%clk 0:00:59.4]}
34... Qxb2+ {[%clk 0:01:23.4]} 35. Kh3 {[%clk 0:00:59.3]} 35... Qxa2 {[%clk
0:01:22.8]} 36. Rd7 {[%clk 0:00:59]} 36... Qb1 {[%clk 0:01:18.2]} 37. Bh5 {[%clk
0:00:56.5]} 37... Qf5+ {[%clk 0:01:11]} 38. Kh4 {[%clk 0:00:56.7]} 38... b4
{[%clk 0:01:09.1]} 39. Ra7 {[%clk 0:00:57.2]} 39... b3 {[%clk 0:01:07.9]} 40.
Rxa6 {[%clk 0:00:52]} 40... b2 {[%clk 0:01:07]} 41. Rb6 {[%clk 0:00:50.9]} 41...
b1=Q {[%clk 0:01:06.3]} 42. Rxb1 {[%clk 0:00:50.6]} 42... Qxb1 {[%clk
0:01:06.8]} 0-1

[Event "Late-Titled-Tuesday-Blitz-June-04-2024"]
[Site "Chess.com"]
[Date "2024.06.04"]
[Round "11"]
[White "Szparu"]
[Black "JoakimVonAnd"]
[Result "1-0"]
[WhiteElo "2974"]
[BlackElo "2794"]
[TimeControl "180+1"]
[EndTime "16:04:15 PDT"]
[Termination "Szparu won by resignation"]

1. Nf3 {[%clk 0:03:00.9]} 1... d5 {[%clk 0:02:59.7]} 2. d4 {[%clk 0:03:00]} 2...
Nf6 {[%clk 0:02:59.7]} 3. c4 {[%clk 0:03:00.3]} 3... e6 {[%clk 0:02:59.1]} 4. g3
{[%clk 0:03:00.5]} 4... h6 {[%clk 0:02:55.3]} 5. Bg2 {[%clk 0:02:59.2]} 5... Bd6
{[%clk 0:02:53.9]} 6. O-O {[%clk 0:02:58.9]} 6... O-O {[%clk 0:02:53]} 7. b3
{[%clk 0:02:54.2]} 7... b6 {[%clk 0:02:48.5]} 8. cxd5 {[%clk 0:02:50.7]} 8...
exd5 {[%clk 0:02:47.8]} 9. Nc3 {[%clk 0:02:51.2]} 9... Re8 {[%clk 0:02:44.9]}
10. Nb5 {[%clk 0:02:47.5]} 10... Ba6 {[%clk 0:02:31.1]} 11. Nxd6 {[%clk
0:02:47]} 11... Bxe2 {[%clk 0:02:26.2]} 12. Nxe8 {[%clk 0:02:46.9]} 12... Bxd1
{[%clk 0:02:26]} 13. Nxf6+ {[%clk 0:02:47.2]} 13... Qxf6 {[%clk 0:02:26.1]} 14.
Rxd1 {[%clk 0:02:47.8]} 14... Nd7 {[%clk 0:02:23.6]} 15. Ne5 {[%clk 0:02:30.3]}
15... Nxe5 {[%clk 0:02:15.1]} 16. dxe5 {[%clk 0:02:31.2]} 16... Qxe5 {[%clk
0:02:15.4]} 17. Bf4 {[%clk 0:02:30]} 17... Qe7 {[%clk 0:02:10.6]} 18. Rxd5
{[%clk 0:02:22.1]} 18... Rd8 {[%clk 0:02:08.9]} 19. Rxd8+ {[%clk 0:02:12.6]}
19... Qxd8 {[%clk 0:02:09.8]} 20. Bf3 {[%clk 0:01:53.2]} 20... c5 {[%clk
0:02:07.6]} 21. Rd1 {[%clk 0:01:49.2]} 21... Qf6 {[%clk 0:02:07.5]} 22. Kg2
{[%clk 0:01:47.6]} 22... g6 {[%clk 0:01:51.7]} 23. Rd7 {[%clk 0:01:41.7]} 23...
g5 {[%clk 0:01:25.5]} 24. Bb8 {[%clk 0:01:12.8]} 24... Qf5 {[%clk 0:01:23.7]}
25. Rd8+ {[%clk 0:01:01.8]} 25... Kg7 {[%clk 0:01:23.2]} 26. g4 {[%clk
0:00:57.5]} 26... Qf6 {[%clk 0:01:15.6]} 27. Rd7 {[%clk 0:00:53.3]} 27... Qe6
{[%clk 0:01:15.8]} 28. Rxa7 {[%clk 0:00:45.1]} 28... b5 {[%clk 0:01:16.2]} 29.
Rc7 {[%clk 0:00:42.7]} 29... c4 {[%clk 0:01:15.2]} 30. bxc4 {[%clk 0:00:42.4]}
30... bxc4 {[%clk 0:01:16.1]} 31. Ba7 {[%clk 0:00:41.3]} 31... c3 {[%clk
0:01:05.4]} 32. Bd4+ {[%clk 0:00:40.5]} 32... Kh7 {[%clk 0:01:01]} 33. Bxc3
{[%clk 0:00:35.3]} 1-0

[Event "Late-Titled-Tuesday-Blitz-June-04-2024"]
[Site "Chess.com"]
[Date "2024.06.04"]
[Round "11"]
[White "Agustin_Meza"]
[Black "IngOscarArdila"]
[Result "1/2-1/2"]
[WhiteElo "2197"]
[BlackElo "2288"]
[TimeControl "180+1"]
[EndTime "16:04:41 PDT"]
[Termination "Game drawn by repetition"]

1. e4 {[%clk 0:03:00.6]} 1... e5 {[%clk 0:02:59.6]} 2. Nf3 {[%clk 0:03:00.8]}
2... Nf6 {[%clk 0:02:58.6]} 3. Nxe5 {[%clk 0:02:59.2]} 3... d6 {[%clk
0:02:58.3]} 4. Nf3 {[%clk 0:02:58]} 4... Nxe4 {[%clk 0:02:58.2]} 5. d4 {[%clk
0:02:58.9]} 5... Be7 {[%clk 0:02:57.9]} 6. Bd3 {[%clk 0:02:59.3]} 6... d5 {[%clk
0:02:57.8]} 7. c4 {[%clk 0:02:59.6]} 7... Nc6 {[%clk 0:02:57]} 8. cxd5 {[%clk
0:02:57.8]} 8... Qxd5 {[%clk 0:02:55.5]} 9. Qe2 {[%clk 0:02:57.8]} 9... Bf5
{[%clk 0:02:52.5]} 10. O-O {[%clk 0:02:49.1]} 10... O-O {[%clk 0:02:51.8]} 11.
Bxe4 {[%clk 0:02:43.9]} 11... Qxe4 {[%clk 0:02:49.2]} 12. Qc4 {[%clk 0:02:28.6]}
12... Qd3 {[%clk 0:02:40]} 13. Qxd3 {[%clk 0:02:16.2]} 13... Bxd3 {[%clk
0:02:39.2]} 14. Re1 {[%clk 0:02:17.1]} 14... Bf6 {[%clk 0:02:39]} 15. Be3 {[%clk
0:02:14.2]} 15... Nb4 {[%clk 0:02:37.6]} 16. Na3 {[%clk 0:02:11.4]} 16... Rad8
{[%clk 0:02:34.3]} 17. Rad1 {[%clk 0:02:09.1]} 17... Be4 {[%clk 0:02:32.1]} 18.
Ne5 {[%clk 0:01:46]} 18... Bd5 {[%clk 0:02:27.1]} 19. Rc1 {[%clk 0:01:15.1]}
19... c6 {[%clk 0:02:22.1]} 20. Bd2 {[%clk 0:01:10.1]} 20... a5 {[%clk
0:02:12.4]} 21. Bxb4 {[%clk 0:01:08.7]} 21... axb4 {[%clk 0:02:13.3]} 22. Nac4
{[%clk 0:01:09.6]} 22... Rfe8 {[%clk 0:01:48.5]} 23. h3 {[%clk 0:01:02.4]} 23...
Ra8 {[%clk 0:01:39.1]} 24. Nb6 {[%clk 0:00:34]} 24... Rxa2 {[%clk 0:01:26.6]}
25. Nxd5 {[%clk 0:00:28.9]} 25... cxd5 {[%clk 0:01:26.1]} 26. Nd7 {[%clk
0:00:29.8]} 26... Rxe1+ {[%clk 0:01:17.1]} 27. Rxe1 {[%clk 0:00:28.4]} 27... h6
{[%clk 0:01:14]} 28. Re8+ {[%clk 0:00:20.2]} 28... Kh7 {[%clk 0:01:13.9]} 29.
Nf8+ {[%clk 0:00:20.2]} 29... Kg8 {[%clk 0:01:12.9]} 30. Ng6+ {[%clk 0:00:11.2]}
30... Kh7 {[%clk 0:01:12.2]} 31. Nf8+ {[%clk 0:00:11.4]} 31... Kg8 {[%clk
0:01:08.7]} 32. Ng6+ {[%clk 0:00:11.3]} 32... Kh7 {[%clk 0:01:08.5]} 33. Nf8+
{[%clk 0:00:12.2]} 1/2-1/2

[Event "Late-Titled-Tuesday-Blitz-June-04-2024"]
[Site "Chess.com"]
[Date "2024.06.04"]
[Round "11"]
[White "Engima32"]
[Black "xasid81"]
[Result "0-1"]
[WhiteElo "2477"]
[BlackElo "2626"]
[TimeControl "180+1"]
[EndTime "16:04:42 PDT"]
[Termination "xasid81 won by resignation"]

1. d4 {[%clk 0:02:59.8]} 1... a6 {[%clk 0:03:00.9]} 2. Nf3 {[%clk 0:02:59.6]}
2... e6 {[%clk 0:03:01.8]} 3. g3 {[%clk 0:02:59.9]} 3... d5 {[%clk 0:03:02.7]}
4. Bg2 {[%clk 0:03:00.2]} 4... Nf6 {[%clk 0:03:03.6]} 5. O-O {[%clk 0:03:00.8]}
5... Be7 {[%clk 0:03:04.4]} 6. c4 {[%clk 0:03:01.4]} 6... O-O {[%clk 0:03:05.3]}
7. Qc2 {[%clk 0:02:55.9]} 7... b6 {[%clk 0:03:01.5]} 8. Ne5 {[%clk 0:02:55.1]}
8... Bb7 {[%clk 0:03:01.1]} 9. Nc3 {[%clk 0:02:55.6]} 9... Nc6 {[%clk
0:03:01.2]} 10. Bg5 {[%clk 0:02:54.7]} 10... Nxd4 {[%clk 0:03:01]} 11. Qa4
{[%clk 0:02:50.4]} 11... c5 {[%clk 0:02:47.4]} 12. e3 {[%clk 0:02:37.4]} 12...
b5 {[%clk 0:02:43.6]} 13. Qd1 {[%clk 0:02:19.7]} 13... Nc6 {[%clk 0:02:43.2]}
14. Nxc6 {[%clk 0:02:12.1]} 14... Bxc6 {[%clk 0:02:44.1]} 15. cxd5 {[%clk
0:02:12.1]} 15... exd5 {[%clk 0:02:40.7]} 16. Nxd5 {[%clk 0:01:52.6]} 16... Bxd5
{[%clk 0:02:29]} 17. Bxf6 {[%clk 0:01:49.1]} 17... Bxg2 {[%clk 0:02:28.4]} 18.
Bxe7 {[%clk 0:01:41.5]} 18... Qxe7 {[%clk 0:02:27]} 19. Kxg2 {[%clk 0:01:41.7]}
19... Rfd8 {[%clk 0:02:27]} 20. Qf3 {[%clk 0:01:40.8]} 20... Rac8 {[%clk
0:02:25.6]} 21. Rac1 {[%clk 0:01:40.8]} 21... c4 {[%clk 0:02:25.3]} 22. Rfd1
{[%clk 0:01:40.7]} 22... Rxd1 {[%clk 0:02:23.9]} 23. Rxd1 {[%clk 0:01:41.6]}
23... g6 {[%clk 0:02:23.7]} 24. Qd5 {[%clk 0:01:38.3]} 24... Qc5 {[%clk
0:02:17]} 25. Qxc5 {[%clk 0:01:26.1]} 25... Rxc5 {[%clk 0:02:17.9]} 26. Rd6
{[%clk 0:01:24.6]} 26... a5 {[%clk 0:02:17.8]} 27. Ra6 {[%clk 0:01:22]} 27... b4
{[%clk 0:02:17.6]} 28. Rd6 {[%clk 0:01:20.1]} 28... c3 {[%clk 0:02:17.8]} 29.
bxc3 {[%clk 0:01:19.8]} 29... Rxc3 {[%clk 0:02:12.1]} 30. Rd2 {[%clk 0:01:19.7]}
30... Kg7 {[%clk 0:02:10.1]} 31. Kf3 {[%clk 0:01:20.1]} 31... Ra3 {[%clk
0:02:06.2]} 32. Ke4 {[%clk 0:01:17.2]} 32... Kf6 {[%clk 0:02:05.1]} 33. f4
{[%clk 0:01:10.5]} 33... Ke6 {[%clk 0:02:03.6]} 34. Kd4 {[%clk 0:01:07.3]} 34...
Ra4 {[%clk 0:01:59.7]} 35. Kc4 {[%clk 0:00:54.4]} 35... f5 {[%clk 0:01:56]} 36.
Kc5 {[%clk 0:00:33.9]} 36... Ra3 {[%clk 0:01:54]} 37. Kb5 {[%clk 0:00:30.7]}
37... h5 {[%clk 0:01:52.2]} 38. Rd4 {[%clk 0:00:19.9]} 38... Rxa2 {[%clk
0:01:50.5]} 39. e4 {[%clk 0:00:19.3]} 39... b3 {[%clk 0:01:49.1]} 40. exf5+
{[%clk 0:00:19.5]} 40... gxf5 {[%clk 0:01:48.6]} 41. Rd1 {[%clk 0:00:18.5]}
41... b2 {[%clk 0:01:48.7]} 42. Re1+ {[%clk 0:00:18.4]} 42... Kf6 {[%clk
0:01:48.3]} 43. Rb1 {[%clk 0:00:17.3]} 43... a4 {[%clk 0:01:48.5]} 44. Kb4
{[%clk 0:00:17.4]} 44... a3 {[%clk 0:01:48.7]} 45. Kb3 {[%clk 0:00:17.8]} 45...
Ra1 {[%clk 0:01:48.8]} 46. Kc2 {[%clk 0:00:18]} 46... Rxb1 {[%clk 0:01:49.1]}
47. Kxb1 {[%clk 0:00:18.5]} 47... h4 {[%clk 0:01:49.9]} 48. gxh4 {[%clk
0:00:15.6]} 48... Kg6 {[%clk 0:01:50.4]} 49. h5+ {[%clk 0:00:15.7]} 49... Kxh5
{[%clk 0:01:50.8]} 50. h4 {[%clk 0:00:16.6]} 50... Kxh4 {[%clk 0:01:51.3]} 51.
Ka2 {[%clk 0:00:17.1]} 51... Kg4 {[%clk 0:01:52.2]} 52. Kxa3 {[%clk 0:00:17.7]}
52... Kxf4 {[%clk 0:01:53.1]} 53. Kxb2 {[%clk 0:00:18.6]} 53... Ke3 {[%clk
0:01:52.7]} 54. Kc2 {[%clk 0:00:18.9]} 54... Ke2 {[%clk 0:01:53.2]} 55. Kc3
{[%clk 0:00:19]} 55... f4 {[%clk 0:01:54.1]} 56. Kd4 {[%clk 0:00:19.9]} 56... f3
{[%clk 0:01:54.8]} 57. Ke4 {[%clk 0:00:20.8]} 57... f2 {[%clk 0:01:55.7]} 58.
Ke5 {[%clk 0:00:21.7]} 58... f1=Q {[%clk 0:01:56.5]} 59. Ke6 {[%clk 0:00:22.6]}
59... Qf3 {[%clk 0:01:57.1]} 60. Ke7 {[%clk 0:00:23.5]} 60... Qe3+ {[%clk
0:01:58]} 61. Kd8 {[%clk 0:00:23.9]} 61... Kf3 {[%clk 0:01:58.9]} 62. Kc7 {[%clk
0:00:24.8]} 62... Qf4+ {[%clk 0:01:59.8]} 63. Kb6 {[%clk 0:00:25.3]} 63... Qe4
{[%clk 0:02:00.2]} 0-1